bitfinex/quotes_ETHUSD_20260310
["timestamp","ask_amount","ask_price","bid_price","bid_amount"]
[1773110219331,2.86343287,2045.4,2044.1,3.32996796]
[1773110219537,2.86341529,2045.4,2044.1,3.32996796]
[1773110219897,1.64116012,2045.3,2043.8,2.90584218]
[1773110220099,1.64116012,2045.3,2044.0,0.001]
[1773110220457,1.22225517,2045.4,2044.0,0.001]
[1773110220458,1.64316012,2045.2,2044.0,0.001]
[1773110220606,1.64116012,2044.7,2043.8,0.001]
[1773110220790,1.64116012,2044.7,2043.0,4.89462085]
[1773110220791,1.64116012,2044.3,2042.4,6.57821112]
[1773110220992,1.64116012,2044.1,2042.6,1.22387036]
[1773110221238,1.64116012,2044.1,2043.5,0.001]
[1773110222523,1.522,2044.2,2043.5,0.001]
[1773110222841,1.521,2044.3,2043.5,0.001]
[1773110222989,2.86401279,2044.4,2043.5,0.001]
[1773110223194,1.22273305,2044.6,2043.5,0.001]
[1773110223395,2.74369844,2044.7,2043.5,0.001]
[1773110223636,1.64654835,2044.6,2043.5,0.001]
[1773110223938,2.86921098,2044.8,2043.5,0.001]
[1773110224097,1.64654835,2044.7,2043.5,0.001]
[1773110224820,1.22273305,2044.6,2043.5,0.001]
[1773110225030,2.8692814,2044.6,2043.5,0.001]
[1773110225516,4.3882814,2044.6,2043.5,0.001]
[1773110226295,2.8692814,2044.6,2043.5,0.001]
[1773110226496,4.3872814,2044.6,2043.5,0.001]
[1773110229327,3.32996796,2045.1,2043.5,0.001]
[1773110229328,1.64654835,2045.1,2043.6,2.84411955]
[1773110229501,2.73749388,2045.0,2043.7,2.84359925]
[1773110229702,4.38404223,2045.0,2043.5,0.001]
[1773110229914,4.38404223,2045.0,2043.6,2.84361669]
[1773110230109,4.38404223,2045.0,2043.7,2.84361669]
[1773110230333,1.514,2044.9,2043.8,2.84361669]
[1773110230533,1.513,2044.9,2043.9,2.84361669]
[1773110230733,2.87092718,2045.2,2044.0,2.84361669]
[1773110231027,1.64654835,2045.0,2043.5,0.001]
[1773110231230,1.64654835,2045.0,2043.6,2.8460776]
[1773110231429,1.64654835,2044.8,2043.7,2.8460776]
[1773110232197,1.512,2044.9,2043.7,2.8460776]
[1773110232401,1.512,2045.0,2043.8,2.8460776]
[1773110232702,1.512,2045.0,2043.9,2.8460776]
[1773110232930,1.511,2045.1,2044.0,2.8460776]
[1773110233132,2.87092476,2045.2,2044.1,2.8460776]
[1773110233339,3.15954835,2045.2,2044.3,1.22291248]
[1773110233829,2.87093166,2045.2,2044.3,1.22291248]
[1773110234834,2.87093166,2045.2,2044.2,1.22292744]
[1773110235637,2.87093166,2045.2,2044.0,1.22309197]
[1773110235930,0.002,2045.0,2044.1,2.84533434]
[1773110236231,0.002,2045.0,2044.2,2.84533434]
[1773110236407,0.002,2045.0,2044.0,1.22309197]
[1773110236610,0.002,2045.0,2044.1,2.84608541]
[1773110236938,0.002,2045.0,2044.2,2.84608541]
[1773110237235,0.002,2045.0,2044.0,1.22309197]
[1773110237430,0.002,2045.0,2044.1,2.84571281]
[1773110237632,0.002,2045.0,2044.2,4.06868512]
[1773110237836,0.002,2045.0,2044.2,1.22297231]
[1773110238047,0.002,2045.0,2044.0,4.89219733]
[1773110238229,0.002,2045.0,2044.1,2.84581269]
[1773110238545,1.506,2045.4,2044.2,2.84581269]
[1773110238707,1.506,2045.4,2044.1,2.20868217]
[1773110238708,1.506,2045.4,2044.3,2.84581269]
[1773110238908,1.506,2045.4,2044.4,2.84581269]
[1773110239226,1.506,2045.4,2044.1,2.20868217]
[1773110239416,1.506,2045.4,2044.2,2.84489971]
[1773110239603,1.506,2045.4,2044.3,4.06781219]
[1773110239803,2.72825787,2045.4,2044.4,2.84489971]
[1773110240219,1.506,2045.4,2044.4,2.84489971]
[1773110240627,2.72826133,2045.4,2044.4,2.84489971]
[1773110241131,1.506,2045.4,2044.4,2.84489971]
[1773110241333,2.72826238,2045.4,2044.4,2.84489971]
[1773110241578,1.64654835,2045.6,2044.5,4.89093221]
[1773110241710,1.64654835,2045.6,2044.4,1.22284197]
[1773110242026,1.64654835,2045.6,2044.2,7.42484195]
[1773110242027,1.64654835,2045.5,2044.5,2.84431972]
[1773110242231,1.64654835,2045.5,2044.2,1.22294369]
[1773110242232,1.64654835,2045.4,2044.2,1.22294369]
[1773110242430,1.64654835,2045.4,2044.3,2.84447523]
[1773110242734,1.64654835,2045.4,2044.2,1.22294369]
[1773110242932,1.64654835,2045.4,2044.3,2.84463118]
[1773110243231,1.64654835,2045.4,2044.2,1.22294369]
[1773110243429,1.64654835,2045.4,2044.3,2.84465057]
[1773110243740,1.64654835,2045.4,2044.1,4.84188924]
[1773110243741,2.86886292,2045.3,2044.1,4.84188924]
[1773110243936,2.86886292,2045.3,2043.9,4.89258562]
[1773110243937,1.64654835,2045.2,2044.2,2.84477799]
[1773110244110,1.64654835,2045.0,2043.9,1.22309863]
[1773110244710,1.498,2044.9,2044.0,2.84617766]
[1773110244919,1.64654835,2044.8,2043.8,1.22316448]
[1773110245145,1.64654835,2044.8,2043.7,1.22422854]
[1773110245444,1.64654835,2044.8,2043.7,1.22426047]
[1773110245614,1.64654835,2044.6,2043.7,0.001]
[1773110246341,1.64654835,2044.4,2043.7,0.001]
[1773110246540,10.07069301,2044.8,2043.7,0.001]
[1773110246541,2.86920577,2044.8,2043.7,0.001]
[1773110246740,1.496,2044.5,2043.7,0.001]
[1773110247413,3.14254835,2044.5,2043.7,0.001]
[1773110247746,1.495,2044.4,2043.7,0.001]
[1773110247975,2.7178531,2044.4,2043.7,0.001]
[1773110248243,7.8978531,2044.4,2043.7,0.001]
[1773110248444,9.54440145,2044.4,2043.7,0.001]
[1773110248646,1.64654835,2043.9,2043.5,0.001]
[1773110248949,5.18,2044.0,2043.5,0.001]
[1773110248950,1.494,2044.0,2043.5,0.001]
[1773110249346,1.64654835,2043.9,2042.6,2.20868217]
[1773110249645,3.14054835,2044.0,2042.5,1.68377416]
[1773110249827,8.31954835,2043.9,2042.5,6.74389607]
[1773110250011,8.31954835,2043.9,2043.7,0.001]
[1773110250428,8.31954835,2043.9,2043.4,0.001]
[1773110250429,6.82654835,2043.7,2043.4,0.001]
[1773110250659,3.13854835,2043.6,2043.4,0.001]
[1773110251318,1.492,2043.5,2043.4,0.001]
[1773110252063,1.491,2043.7,2043.4,0.001]
[1773110252551,1.64654835,2044.5,2043.4,0.001]
[1773110252759,4.89107886,2044.6,2043.4,0.001]
[1773110252760,1.64654835,2044.4,2043.4,0.001]
[1773110252956,1.64654835,2044.3,2043.4,0.001]
[1773110253863,2.71301845,2044.2,2043.4,0.001]
[1773110254028,4.1963095,2044.2,2043.4,0.001]
[1773110254561,1.489,2044.1,2043.4,0.001]
[1773110254964,1.48329105,2044.0,2043.4,0.001]
[1773110256064,1.488,2043.9,2043.4,0.001]
[1773110256266,6.37491183,2044.4,2043.4,0.001]
[1773110256461,1.488,2044.3,2043.4,0.001]
[1773110257329,1.22282362,2044.5,2043.4,0.001]
[1773110257536,1.48329105,2044.3,2043.4,0.001]
[1773110258238,1.22297231,2044.2,2043.4,0.001]
[1773110258439,1.486,2044.1,2043.4,0.001]
[1773110258637,1.486,2044.0,2043.4,0.001]
[1773110259972,1.485,2044.0,2043.4,0.001]
[1773110260452,1.22295663,2044.3,2043.4,0.001]
[1773110260770,1.484,2044.2,2043.4,0.001]
[1773110261330,1.48329105,2044.4,2043.4,0.001]
[1773110261669,1.483,2044.3,2043.4,0.001]
[1773110262140,1.483,2044.2,2043.6,0.001]
[1773110262344,1.48329105,2044.7,2043.6,0.001]
[1773110262552,1.482,2044.6,2043.6,1.48978672]
[1773110262761,1.48329105,2044.7,2043.6,1.48978672]
[1773110262932,1.482,2044.9,2043.6,1.48978672]
[1773110263132,1.482,2044.9,2043.7,1.48878672]
[1773110263438,0.002,2044.3,2043.7,1.48878672]
[1773110264245,0.002,2044.3,2043.8,1.22321166]
[1773110264837,8.24010572,2045.3,2043.9,1.48878672]
[1773110264838,1.22235353,2045.3,2043.9,1.48878672]
[1773110265176,0.002,2045.4,2044.4,1.48878672]
[1773110265389,0.002,2045.4,2044.6,1.48878672]
[1773110265532,0.002,2045.4,2044.8,4.839156]
[1773110265731,0.002,2045.4,2044.8,1.48878672]
[1773110266235,0.002,2045.4,2044.9,1.22255367]
[1773110267836,0.002,2045.6,2044.9,1.22255367]
[1773110268272,0.002,2045.6,2044.9,2.71134039]
[1773110268670,0.002,2045.6,2044.6,4.89083302]
[1773110268963,1.478,2045.6,2044.6,4.89083302]
[1773110269477,0.002,2045.6,2044.6,1.22273305]
[1773110270366,1.22413531,2045.6,2044.6,1.22273305]
[1773110271584,0.002,2045.6,2044.7,1.48878672]
[1773110271883,0.002,2045.6,2044.6,1.22273305]
[1773110272246,1.48529105,2045.6,2044.6,1.22273305]
[1773110272459,2.70742674,2045.6,2044.4,6.37971893]
[1773110272660,2.70743982,2045.6,2044.4,6.37971893]
[1773110274700,2.70743982,2045.6,2044.4,4.89093221]
[1773110274701,1.41471982,2045.5,2044.4,4.89093221]
[1773110274863,1.41471982,2045.3,2044.3,4.89150383]
[1773110275046,1.41471982,2045.3,2044.2,1.22294033]
[1773110275450,1.41471982,2045.3,2043.9,1.22309197]
[1773110275654,1.41471982,2045.1,2043.9,2.68530999]
[1773110276282,1.41471982,2045.1,2043.9,1.22309197]
[1773110276588,2.6372137,2045.0,2044.6,0.001]
[1773110278004,2.6372137,2045.0,2044.1,0.001]
[1773110278005,1.41471982,2044.9,2044.1,0.001]
[1773110278157,1.41471982,2044.6,2043.4,1.2244057]
[1773110278487,1.41471982,2044.4,2043.4,1.2244057]
[1773110278691,2.6376323,2044.3,2043.4,0.001]
[1773110279085,1.41471982,2044.2,2043.4,0.001]
[1773110280788,2.63773774,2044.2,2043.4,0.001]
[1773110280955,1.22279285,2044.5,2043.4,0.001]
[1773110281158,1.22255367,2044.9,2043.5,1.46221802]
[1773110281364,1.22252193,2045.0,2043.8,1.46221802]
[1773110282001,1.465,2045.2,2043.8,1.46221802]
[1773110282161,1.465,2045.2,2044.1,1.46221802]
[1773110282517,1.41671982,2045.4,2044.3,3.35036928]
[1773110282667,1.41671982,2045.4,2044.4,1.19839229]
[1773110282668,1.22427429,2045.4,2044.4,1.19839229]
[1773110282993,2.68827429,2045.4,2044.4,1.19839229]
[1773110284478,1.462,2045.3,2044.1,1.36136763]
[1773110284681,0.002,2045.4,2044.2,1.22297231]
[1773110284988,0.002,2045.4,2044.3,1.36136763]
[1773110285194,1.464,2045.4,2044.3,1.36136763]
[1773110285395,2.87137006,2045.4,2044.2,1.22297231]
[1773110285599,1.462,2045.3,2044.2,5.93470922]
[1773110285810,1.462,2045.3,2044.3,1.36136763]
[1773110286971,1.22237433,2045.2,2044.4,1.22285267]
[1773110288001,2.62974439,2045.2,2044.0,4.89235837]
[1773110288208,1.22237433,2045.2,2044.1,1.36136763]
[1773110288391,1.22232022,2045.3,2044.2,4.71173691]
[1773110288598,4.89102716,2045.4,2044.2,4.71173691]
[1773110288599,2.68429668,2045.4,2044.3,1.36136763]
[1773110289104,0.002,2045.4,2044.4,1.22285267]
[1773110289874,0.002,2045.4,2044.6,3.34863837]
[1773110290283,0.002,2045.4,2044.6,1.36136763]
[1773110291180,0.002,2045.2,2044.7,1.22267325]
[1773110291599,1.40737006,2045.0,2044.1,1.22298568]
[1773110291779,1.458,2045.1,2044.1,1.22298568]
[1773110292681,1.46,2045.2,2044.1,1.22298568]
[1773110293005,2.86737006,2045.2,2044.1,1.22298568]
[1773110293407,1.22243411,2045.1,2044.0,4.89312856]
[1773110293607,1.22243411,2045.1,2044.0,1.22409197]
[1773110293806,1.40737006,2045.0,2044.0,0.001]
[1773110294183,1.40737006,2045.0,2043.8,0.001]
[1773110294184,1.40737006,2044.4,2043.8,0.001]
[1773110294381,1.457,2044.3,2043.8,0.001]
[1773110294611,1.40737006,2044.4,2043.8,0.001]
[1773110294612,1.457,2044.4,2043.8,1.22420315]
[1773110295132,1.457,2044.4,2043.8,0.001]
[1773110295292,1.40737006,2044.3,2043.8,0.001]
[1773110295625,1.40737006,2044.3,2043.5,0.001]
[1773110295626,1.40737006,2044.1,2043.5,0.001]
[1773110296281,1.456,2044.0,2043.5,0.001]
[1773110297208,2.86337006,2044.0,2043.5,0.001]
[1773110297600,1.22315181,2043.9,2043.5,0.001]
[1773110298185,1.455,2043.8,2043.5,0.001]
[1773110299297,1.455,2043.8,2043.4,0.001]
[1773110299807,1.22327151,2043.7,2043.4,0.001]
[1773110300183,2.63064157,2043.7,2043.1,0.001]
[1773110301211,1.22327151,2043.7,2043.1,0.001]
[1773110301599,2.63064157,2043.7,2043.1,0.001]
[1773110301924,1.40737006,2043.6,2043.1,0.001]
[1773110302705,2.86037006,2043.6,2043.1,0.001]
[1773110303716,2.67639124,2043.5,2043.1,0.001]
[1773110304583,2.67639124,2043.5,2043.3,0.001]
[1773110304812,4.0837613,2043.5,2043.1,0.001]
[1773110304992,1.40737006,2043.4,2043.1,0.001]
[1773110305206,1.40737006,2043.4,2043.0,0.001]
[1773110305728,1.22351098,2043.3,2043.0,0.001]
[1773110305891,1.453,2043.2,2043.0,0.001]
[1773110306590,1.40737006,2043.1,2042.0,3.70178286]
[1773110306789,1.453,2043.2,2041.8,1.36136763]
[1773110306790,1.40737006,2042.9,2041.8,1.22437356]
[1773110307225,1.40737006,2042.9,2041.6,1.22452978]
[1773110307399,1.40737006,2042.9,2041.6,2.58589741]
[1773110307400,1.453,2042.8,2041.6,2.58589741]
[1773110307720,1.22387036,2042.7,2041.6,2.58589741]
[1773110308034,2.63124042,2042.7,2041.6,2.58589741]
[1773110308328,1.40737006,2042.6,2041.6,1.22452978]
[1773110308492,1.40737006,2042.6,2041.3,1.22470974]
[1773110308690,4.89412551,2043.3,2041.7,1.36136763]
[1773110309026,1.40737006,2043.0,2041.7,1.36136763]
[1773110309590,1.40737006,2043.0,2041.3,2.58607737]
[1773110309894,1.40737006,2042.8,2041.5,1.22458976]
[1773110310390,1.40737006,2042.8,2041.5,2.58595739]
[1773110310620,2.63112061,2042.9,2041.6,1.36136763]
[1773110311843,1.40737006,2042.8,2041.7,1.2244698]
[1773110312356,2.85937006,2042.8,2041.7,2.58583743]
[1773110312666,1.40737006,2042.7,2041.6,1.22448763]
[1773110313927,1.39314978,2042.5,2041.5,4.89811912]
[1773110314323,1.39314978,2042.5,2041.1,8.25416297]
[1773110314324,1.39314978,2042.3,2041.2,1.22476974]
[1773110314651,1.452,2042.2,2041.2,1.22476974]
[1773110315158,2.84514978,2042.2,2041.2,1.22476974]
[1773110315334,2.84514978,2042.5,2041.3,1.41555574]
[1773110315549,2.84514978,2042.5,2041.5,3.35779284]
[1773110315857,1.39314978,2042.5,2041.4,2.64020549]
[1773110316074,1.452,2042.5,2041.6,1.41555574]
[1773110316563,6.20294262,2042.5,2041.4,1.22464975]
[1773110316880,2.84514978,2042.5,2041.4,1.22464975]
[1773110317021,1.39314978,2042.5,2041.4,1.22464975]
[1773110317226,1.451,2042.4,2041.4,1.22464975]
[1773110317951,1.22411007,2042.3,2041.4,1.22464975]
[1773110318153,1.22411007,2042.3,2041.7,0.001]
[1773110319377,2.67511007,2042.3,2041.7,0.001]
[1773110319885,1.39314978,2042.5,2041.7,0.001]
[1773110319886,2.61715387,2042.5,2041.7,0.001]
[1773110320036,1.22411007,2042.3,2041.7,0.001]
[1773110320235,1.39314978,2042.2,2041.7,0.001]
[1773110320948,2.84414978,2042.2,2041.7,0.001]
[1773110321765,1.39314978,2042.1,2041.7,0.001]
[1773110321945,4.89661264,2042.3,2041.7,0.001]
[1773110322144,1.22405013,2042.4,2041.7,0.001]
[1773110322348,1.45,2042.3,2041.7,0.001]
[1773110322557,1.39314978,2042.2,2041.7,0.001]
[1773110322753,1.39314978,2041.9,2041.5,0.001]
[1773110323769,1.39314978,2042.2,2041.5,0.001]
[1773110324070,1.22422995,2042.1,2041.5,0.001]
[1773110325163,1.451,2042.0,2041.5,0.001]
[1773110325392,1.451,2042.1,2041.5,0.001]
[1773110325536,1.39314978,2042.2,2041.5,0.001]
[1773110326144,1.39314978,2042.0,2041.5,0.001]
[1773110327166,1.39314978,2042.0,2041.2,0.001]
[1773110327565,1.39314978,2041.8,2041.2,0.001]
[1773110327763,1.451,2041.7,2041.2,0.001]
[1773110327971,2.84414978,2041.7,2041.2,0.001]
[1773110328472,2.61767956,2041.6,2041.2,0.001]
[1773110329294,1.22452978,2041.6,2041.2,0.001]
[1773110329666,1.22440983,2041.8,2041.2,0.001]
[1773110329867,2.67540983,2041.8,2041.2,0.001]
[1773110330765,3.94074805,2041.8,2041.2,0.001]
[1773110331162,6.41533822,2041.7,2041.2,0.001]
[1773110331379,1.22440983,2041.8,2041.2,0.001]
[1773110331584,1.451,2041.7,2041.2,0.001]
[1773110332364,1.22440983,2041.8,2041.2,0.001]
[1773110332365,1.45,2041.6,2041.2,0.001]
[1773110332566,1.45,2041.5,2041.2,0.001]
[1773110334410,1.45,2041.5,2041.4,0.001]
[1773110336597,3.93992798,2041.5,2040.5,6.19765496]
[1773110336787,3.93992798,2041.5,2040.5,4.90027931]
[1773110336788,1.26533822,2041.4,2040.5,4.90027931]
[1773110337811,1.449,2041.4,2040.5,4.90027931]
[1773110337998,6.16324761,2041.7,2040.6,1.29737565]
[1773110338198,1.449,2041.6,2040.6,1.29737565]
[1773110338388,2.71433822,2041.6,2040.6,1.29737565]
[1773110339121,1.448,2041.5,2040.7,1.22506982]
[1773110340000,1.448,2041.5,2040.6,6.19765496]
[1773110340001,1.26533822,2041.4,2040.6,1.22510472]
[1773110341222,1.26533822,2041.4,2040.4,1.22524995]
[1773110341223,1.26533822,2041.2,2040.4,1.22524995]
[1773110342724,1.447,2041.1,2040.4,1.22524995]
[1773110343237,2.67185806,2041.1,2040.3,4.90123724]
[1773110343421,1.447,2041.1,2040.3,4.90123724]
[1773110343623,1.446,2041.0,2040.3,1.22531]
[1773110343825,2.70446311,2041.0,2040.3,1.22531]
[1773110344851,1.445,2041.4,2040.6,1.23117902]
[1773110345052,1.25846311,2041.3,2040.3,2.45648902]
[1773110345222,1.22476974,2041.2,2040.3,2.45648902]
[1773110345421,1.25846311,2041.2,2040.3,1.22531]
[1773110346942,1.25846311,2041.6,2040.4,1.23117902]
[1773110347249,1.22470974,2041.3,2040.5,1.2261899]
[1773110347449,0.002,2041.0,2040.5,1.2261899]
[1773110347617,1.22470974,2041.3,2040.6,1.23117902]
[1773110347822,0.002,2041.2,2040.6,1.23117902]
[1773110348657,0.002,2041.5,2040.7,1.23117902]
[1773110349230,0.002,2041.5,2040.8,1.2250098]
[1773110350135,0.002,2041.5,2040.9,4.58897186]
[1773110350333,0.002,2041.8,2041.2,3.35779284]
[1773110350537,0.002,2041.8,2041.2,4.58897186]
[1773110350733,1.22642308,2041.8,2040.9,3.50867991]
[1773110350937,2.48488619,2041.8,2040.8,1.2250098]
[1773110351164,2.48488619,2041.8,2040.7,4.9000392]
[1773110351464,1.26046311,2041.8,2040.8,1.23117902]
[1773110351666,2.70046311,2041.8,2040.8,1.23117902]
[1773110351873,0.002,2041.8,2041.0,1.23117902]
[1773110352036,1.22643166,2041.8,2041.0,1.23117902]
[1773110352241,1.22640989,2041.8,2041.0,1.23117902]
[1773110352452,1.22640989,2041.8,2040.7,8.40871911]
[1773110352661,1.22640989,2041.8,2040.8,1.23117902]
[1773110353246,1.22640989,2041.8,2040.9,1.22494977]
[1773110353442,1.22640989,2041.8,2040.9,2.45612879]
[1773110353769,0.002,2041.8,2041.0,1.23117902]
[1773110355972,0.002,2041.8,2041.1,1.22482974]
[1773110356451,0.002,2041.8,2041.1,2.45600876]
[1773110358893,0.002,2041.8,2041.2,3.35779284]
[1773110359477,0.002,2041.8,2041.1,2.45599851]
[1773110360289,0.002,2041.8,2041.2,3.35779284]
[1773110360791,0.002,2041.8,2041.1,2.45599851]
[1773110361494,0.002,2041.6,2041.1,2.45599851]
[1773110362498,1.26046311,2041.6,2040.8,2.27750089]
[1773110362699,1.26046311,2041.6,2041.1,1.23117902]
[1773110362700,0.002,2041.6,2041.1,1.23117902]
[1773110363394,1.26046311,2041.6,2040.6,3.50360615]
[1773110363595,1.26046311,2041.6,2040.6,2.45728428]
[1773110363967,0.002,2041.6,2041.0,1.23117902]
[1773110364396,0.002,2041.8,2041.0,1.23117902]
[1773110364605,0.002,2041.8,2041.1,2.45600876]
[1773110364910,0.002,2042.0,2041.3,1.23117902]
[1773110365599,0.002,2042.0,2041.5,4.59278984]
[1773110365903,0.002,2042.0,2041.6,1.23117902]
[1773110366107,0.002,2042.6,2041.7,1.23117902]
[1773110366475,0.002,2042.6,2041.9,2.45552889]
[1773110366672,0.002,2042.6,2042.0,1.23117902]
[1773110367109,0.002,2042.8,2042.2,1.23117902]
[1773110367276,2.34058334,2043.6,2042.5,1.23117902]
[1773110367277,1.25846311,2043.6,2042.5,1.23117902]
[1773110367805,4.62007393,2043.6,2042.5,1.23117902]
[1773110368103,1.25846311,2043.4,2042.2,1.23117902]
[1773110368522,1.22351098,2043.3,2042.4,2.45522915]
[1773110368897,1.22351098,2043.3,2042.0,3.66850089]
[1773110368898,1.25846311,2042.9,2041.7,3.50867991]
[1773110369208,1.25846311,2042.6,2041.3,1.22470974]
[1773110369523,1.25846311,2042.6,2041.3,1.23117902]
[1773110369721,6.72322164,2043.0,2041.0,3.50867991]
[1773110369722,1.25846311,2042.3,2041.0,3.50867991]
[1773110369927,3.36161082,2042.4,2040.7,1.23117902]
[1773110369928,1.25846311,2042.0,2040.7,1.23117902]
[1773110370090,1.25846311,2041.8,2040.6,2.4573063]
[1773110370294,1.25846311,2041.7,2040.6,4.59378984]
[1773110370490,1.25846311,2041.5,2040.6,0.001]
[1773110371379,1.22451328,2041.7,2040.6,5.81890288]
[1773110372037,2.48297639,2041.7,2040.6,2.45729206]
[1773110372204,2.48297639,2041.7,2040.6,1.23217902]
[1773110372416,2.48297639,2041.7,2040.6,2.4573017]
[1773110372740,2.4829876,2041.7,2040.6,2.4573017]
[1773110374165,3.36161082,2041.5,2040.6,2.4573017]
[1773110375217,1.22453814,2041.6,2040.6,2.4573017]
[1773110375452,1.22453814,2041.6,2040.8,0.001]
[1773110375653,0.002,2041.6,2040.8,1.14836249]
[1773110376642,0.002,2041.6,2040.9,1.22494977]
[1773110377963,4.58802625,2041.8,2041.0,1.14736249]
[1773110377964,0.002,2041.8,2041.0,1.14736249]
[1773110378463,0.002,2041.8,2041.1,1.14736249]
[1773110378672,0.002,2042.1,2041.3,1.14736249]
[1773110378852,0.002,2042.1,2041.4,2.37201224]
[1773110379239,0.002,2042.1,2041.4,1.22464975]
[1773110380868,0.002,2042.1,2041.2,2.37213223]
[1773110381171,0.002,2042.1,2041.3,1.14736249]
[1773110381738,0.002,2042.1,2041.4,1.14736249]
[1773110382757,0.002,2042.1,2041.6,1.14736249]
[1773110382969,0.002,2042.1,2041.6,1.22449545]
[1773110383149,2.41233067,2042.8,2041.7,1.14736249]
[1773110383472,2.41227738,2042.8,2041.7,1.14736249]
[1773110383649,2.41228098,2042.8,2041.7,1.14736249]
[1773110384265,2.41227447,2042.8,2041.7,1.14736249]
[1773110384459,2.41227859,2042.8,2041.7,1.14736249]
[1773110384943,2.41227859,2042.8,2041.8,2.37177232]
[1773110385144,4.55007342,2042.7,2041.8,2.37177232]
[1773110385468,4.55007342,2042.7,2041.8,1.22440983]
[1773110385967,1.1884626,2042.7,2041.8,1.22440983]
[1773110386547,1.22379664,2042.9,2041.8,2.37177232]
[1773110386752,1.22379664,2042.9,2041.9,1.14736249]
[1773110386948,7.18478585,2043.0,2042.0,1.22428991]
[1773110387150,3.36161082,2042.5,2041.7,1.385]
[1773110387355,4.55007342,2042.5,2041.8,1.22438894]
[1773110387752,1.1884626,2042.9,2041.8,1.22438894]
[1773110388466,1.1904626,2042.8,2041.8,1.22438894]
[1773110389175,1.1884626,2042.7,2041.8,1.22438894]
[1773110389380,0.002,2042.8,2041.9,1.14736249]
[1773110389562,0.002,2042.8,2042.0,1.14736249]
[1773110390946,0.002,2042.8,2042.1,1.22422995]
[1773110391155,1.1904626,2042.8,2042.1,1.22422995]
[1773110391673,1.1904626,2042.8,2041.8,7.17506286]
[1773110391674,1.1904626,2042.8,2041.9,1.22434987]
[1773110392243,1.19126332,2042.6,2041.7,1.2244432]
[1773110393153,0.002,2042.8,2041.7,1.20181964]
[1773110393677,1.19126332,2042.7,2041.7,1.20181964]
[1773110393876,1.19126332,2042.5,2041.6,1.22452978]
[1773110394184,1.19126332,2042.5,2041.5,1.22455243]
[1773110394757,1.19126332,2042.3,2041.4,2.4264454]
[1773110394961,1.19126332,2042.3,2041.3,7.17628804]
[1773110394962,1.19126332,2042.3,2041.3,1.22466678]
[1773110395155,2.41543333,2042.2,2041.3,1.22466678]
[1773110395366,1.19126332,2042.5,2041.4,1.20181964]
[1773110396455,1.19126332,2042.4,2041.4,1.20181964]
[1773110396654,1.19126332,2042.4,2041.3,2.60866678]
[1773110397581,1.22411007,2042.3,2041.3,2.60866678]
[1773110397782,1.19126332,2042.2,2041.3,2.60866678]
[1773110398299,1.19126332,2042.2,2041.3,1.22466678]
[1773110399271,1.19126332,2042.2,2041.2,2.60871412]
[1773110399470,1.19126332,2042.2,2041.2,1.22471412]
[1773110399667,1.19126332,2042.0,2041.2,1.22471412]
[1773110400109,1.19126332,2042.0,2041.1,1.22478401]
[1773110400815,1.19126332,2041.8,2040.9,2.27750089]
[1773110401119,1.19126332,2041.8,2040.9,1.20181964]
[1773110401272,1.19126332,2042.1,2041.3,0.001]
[1773110401475,1.19126332,2042.4,2041.4,1.20181964]
[1773110401694,2.41531386,2042.4,2041.5,1.22458976]
[1773110401878,1.19126332,2042.7,2041.6,1.20181964]
[1773110402289,1.19126332,2042.7,2041.6,2.58581964]
[1773110402489,1.19126332,2042.7,2041.6,1.384]
[1773110402691,1.19126332,2042.4,2041.4,2.27750089]
[1773110402892,1.19126332,2042.4,2041.4,1.22463992]
[1773110403073,1.19126332,2042.0,2041.3,0.001]
[1773110404102,1.09544906,2042.3,2041.3,0.001]
[1773110404302,1.09544906,2042.2,2041.3,0.001]
[1773110405471,1.09544906,2042.2,2041.3,1.16682357]
[1773110405675,1.09544906,2042.2,2041.3,3.44432446]
[1773110406104,1.22422995,2042.1,2041.4,1.22464975]
[1773110406299,1.22422995,2042.1,2041.3,0.001]
[1773110406300,1.09544906,2042.0,2041.3,0.001]
[1773110406629,1.09544906,2042.0,2041.3,1.2256984]
[1773110406907,1.09544906,2042.3,2041.3,2.39152197]
[1773110407075,2.62705013,2042.4,2041.3,2.39152197]
[1773110407076,1.09544906,2042.0,2041.3,0.001]
[1773110407475,1.09544906,2042.0,2041.3,1.22566642]
[1773110407714,1.09544906,2042.0,2041.3,1.22570928]
[1773110408209,1.22434987,2041.9,2041.3,0.001]
[1773110408377,2.3197774,2042.0,2041.3,0.001]
[1773110408583,2.31956204,2042.3,2041.3,0.001]
[1773110408905,1.09544906,2042.3,2041.4,1.16582357]
[1773110409103,1.09544906,2042.3,2041.4,3.44332446]
[1773110409477,1.22402217,2042.5,2041.5,3.44332446]
[1773110410101,1.22402217,2042.5,2041.6,1.22452978]
[1773110410301,3.7224262,2042.6,2041.6,1.22452978]
[1773110410497,2.49844906,2042.6,2041.6,1.22452978]
[1773110410713,0.002,2042.8,2041.8,3.44332446]
[1773110410880,0.002,2042.8,2042.0,3.44332446]
[1773110411079,1.22582033,2042.8,2042.0,3.44332446]
[1773110411810,2.32126939,2042.8,2041.9,2.27750089]
[1773110411989,1.09744906,2042.8,2042.0,2.27750089]
[1773110412192,0.002,2042.8,2042.1,1.22422995]
[1773110415085,0.002,2042.6,2042.1,1.22422995]
[1773110416011,0.002,2043.0,2042.2,1.16582357]
[1773110416187,0.002,2043.0,2042.4,1.22405013]
[1773110416501,0.002,2043.0,2042.4,2.3898737]
[1773110416809,0.002,2043.0,2042.5,1.16582357]
[1773110417052,3.71969961,2043.8,2042.6,1.16582357]
[1773110417212,1.09544906,2043.8,2042.6,1.16582357]
[1773110417401,1.09544906,2044.1,2043.0,1.16582357]
[1773110417602,1.09544906,2044.7,2043.2,1.16582357]
[1773110417800,1.09544906,2044.6,2043.4,3.44332446]
[1773110418001,1.09544906,2044.6,2043.5,1.384]
[1773110418192,1.09544906,2044.2,2043.3,1.384]
[1773110418392,1.09544906,2044.6,2043.5,1.16582357]
[1773110418601,2.31822449,2044.6,2043.5,1.16582357]
[1773110419007,1.09544906,2044.6,2043.5,1.16582357]
[1773110419235,1.22262765,2044.8,2043.7,1.16582357]